fUST/lending_fUST_20260207
["ID","MTS","AMOUNT","RATE_DAILY","PERIOD"]
[404668110,1770403832469,-150.0,0.00019196,2]
[404668111,1770403832479,-300.0,0.00019889,2]
[404668112,1770403832488,-8450.70063647,0.0001989,2]
[404668113,1770403832497,-81.97057337,0.00020527,30]
[404668145,1770403840650,-1000.0,0.00020671,2]
[404668147,1770403840659,-779.1106653,0.00021175,2]
[404668148,1770403840668,-177.0,0.00021196,2]
[404668150,1770403840678,-300.0,0.00021915,10]
[404668152,1770403840688,-300.0,0.00021915,10]
[404668154,1770403840697,-300.0,0.00021915,10]
[404668156,1770403840706,-300.0,0.00021915,10]
[404668158,1770403840716,-300.0,0.00021915,10]
[404668160,1770403840725,-300.0,0.00021915,10]
[404668162,1770403840735,-300.0,0.00021915,10]
[404668164,1770403840744,-300.0,0.00021915,10]
[404668166,1770403840754,-300.0,0.00021915,10]
[404668168,1770403840762,-300.0,0.00021915,10]
[404668170,1770403840772,-300.0,0.00021915,10]
[404668172,1770403840781,-300.0,0.00021915,10]
[404668174,1770403840791,-300.0,0.00021915,10]
[404668176,1770403840800,-300.0,0.00021915,10]
[404668178,1770403840810,-300.0,0.00021915,10]
[404668180,1770403840819,-4411.64786623,0.00022,2]
[404668470,1770403844694,-861.09295724,0.00022,2]
[404668471,1770403844703,-600.0,0.00022352,10]
[404668472,1770403844712,-474.950483,0.00022477,2]
[404668473,1770403844722,-193.64645074,0.00022778,2]
[404668484,1770403864596,500.0,0.00013273,2]
[404668765,1770404463678,500.0,0.00013273,2]
[404668766,1770404464000,500.0,0.00013273,2]
[404668790,1770404884231,161.05,9.99e-05,30]
[404668818,1770405031597,-5000.0,0.00019606,2]
[404668820,1770405031608,-313.74786482,0.00019804,2]
[404668822,1770405031618,-150.0,0.00020118,2]
[404668824,1770405031627,-2813.53,0.00020443,30]
[404668826,1770405031636,-10385.08166112,0.00020638,2]
[404668828,1770405031645,-206.851088,0.00020738,2]
[404668829,1770405031654,-184.63367244,0.00020963,2]
[404668831,1770405031664,-300.0,0.0002105,2]
[404668834,1770405031674,-300.0,0.0002105,2]
[404668836,1770405031683,-300.0,0.0002105,2]
[404668838,1770405031694,-696.8822706,0.00021807,2]
[404668840,1770405031703,-500.0,0.00021807,2]
[404668842,1770405031713,-500.0,0.00021807,2]
[404668844,1770405031722,-251.80247719,0.00022,10]
[404668846,1770405031731,-162.76602643,0.00022118,2]
[404668847,1770405031740,-3000.0,0.0002255,2]
[404668849,1770405031750,-236.98895179,0.00022634,30]
[404668860,1770405037806,-2813.53,0.0002072,30]
[404668861,1770405037817,-20345.40284146,0.00022778,2]
[404668862,1770405037827,-5627.06,0.0002294,30]
[404668863,1770405037837,-500.0,0.00022999,2]
[404668864,1770405037847,-500.0,0.00022999,2]
[404668865,1770405037859,-6665.34726291,0.00023,30]
[404668866,1770405037870,-300.0,0.0002313,2]
[404668867,1770405037880,-313.67601314,0.00023228,2]
[404668868,1770405037890,-600.0,0.00023233,10]
[404668869,1770405037899,-500.0,0.0002345,2]
[404668870,1770405037909,-500.0,0.0002345,2]
[404668871,1770405037918,-500.0,0.0002345,10]
[404668872,1770405037928,-500.0,0.0002345,2]
[404668873,1770405037938,-500.0,0.0002345,10]
[404668874,1770405037948,-513.86997722,0.0002345,2]
[404668875,1770405037958,-1806.18249021,0.00024,30]
[404668876,1770405037968,-2268.696777,0.00024223,2]
[404668877,1770405037981,-632.0,0.00024766,2]
[404668878,1770405037990,-20.17732899,0.00024766,2]
[404668879,1770405038003,-175.49667101,0.00024766,2]
[404668880,1770405038013,-179.0,0.00024766,2]
[404668881,1770405038023,-420.0,0.00024766,2]
[404668882,1770405038033,-1982.72487331,0.00024824,30]
[404668883,1770405038046,-2449.64641403,0.00024824,30]
[404668884,1770405038059,-1841.27738523,0.00024824,30]
[404668904,1770405039916,-1461.218,0.00024824,30]
[404668907,1770405039928,-294.5941,0.00024824,30]
[404669291,1770405044400,-411.13922743,0.00024824,30]
[404669293,1770405044412,-6859.81602567,0.00024897,2]
[404669295,1770405044423,-375.83,0.000249,30]
[404669297,1770405044434,-1041.66666667,0.00025,30]
[404669298,1770405044444,-3892.728534,0.00025,15]
[404669299,1770405044453,-3175.13470941,0.00025,30]
[404669300,1770405044463,-250.0,0.00025,10]
[404669301,1770405044472,-916.61,0.000251,7]
[404669302,1770405044482,-2268.696777,0.00025242,2]
[404669303,1770405044492,-720.0,0.00025556,10]
[404669304,1770405044501,-504.31600741,0.00026,5]
[404669305,1770405044511,-200.55,0.00026252,10]
[404669306,1770405044520,-2268.696777,0.00026262,2]
[404669307,1770405044532,-171.1899273,0.00026373,2]
[404669308,1770405044542,-497.4839828,0.00026794,2]
[404669309,1770405044551,-372.25113972,0.00026831,2]
[404669310,1770405044560,-250.0,0.00026841,2]
[404669311,1770405044570,-250.0,0.00026841,2]
[404669312,1770405044580,-306.97158192,0.00026841,2]
[404669313,1770405044589,-250.0,0.00026841,2]
[404669314,1770405044599,-250.0,0.00026841,2]
[404669315,1770405044609,-500.0,0.00026841,2]
[404669316,1770405044619,-391.48872392,0.00026841,2]
[404669339,1770405045818,-1.29440298,0.00026841,2]
[404669340,1770405045828,-500.0,0.00026841,2]
[404669341,1770405045837,-500.0,0.00026841,2]
[404669342,1770405045847,-356.16499828,0.00026841,2]
[404669343,1770405045858,-500.0,0.00026841,2]
[404669344,1770405045867,-250.0,0.00026841,2]
[404669345,1770405045876,-500.0,0.00026841,2]
[404669346,1770405045885,-250.0,0.00026841,2]
[404669347,1770405045894,-500.0,0.00026841,2]
[404669348,1770405045904,-250.0,0.00026841,2]
[404669349,1770405045913,-500.0,0.00026841,2]
[404669350,1770405045923,-250.0,0.00026841,2]
[404669351,1770405045934,-500.0,0.00026841,2]
[404669352,1770405045954,-250.0,0.00026841,2]
[404669353,1770405045972,-500.0,0.00026841,2]
[404669355,1770405045985,-250.0,0.00026841,2]
[404669357,1770405045996,-500.0,0.00026841,2]
[404669359,1770405046006,-250.0,0.00026841,2]
[404669360,1770405046017,-500.0,0.00026841,2]
[404669362,1770405046028,-250.0,0.00026841,2]
[404669363,1770405046037,-217.42302249,0.00026841,2]
[404669364,1770405046252,-282.57697751,0.00026841,2]
[404669365,1770405046264,-439.95102249,0.00026841,2]
[404669571,1770406096281,1021.74629938,0.00015,2]
[404669574,1770406111906,596.56704636,0.000149,2]
[404669606,1770406136104,7220.64665426,0.0001,2]
[404669607,1770406136127,8913.25334574,0.0001,2]
[404669646,1770406231858,-2859.76356748,0.0002,7]
[404669647,1770406231869,-504.07830695,0.0002,7]
[404669648,1770406231880,-1149.54028852,0.0002,7]
[404669662,1770406237881,-1485.67731641,0.0002,7]
[404669663,1770406237892,-331.95634197,0.0002,7]
[404669664,1770406237902,-1650.76770235,0.00024404,2]
[404669665,1770406237938,-1107.93878208,0.00024404,2]
[404670269,1770406246081,-2241.29351557,0.00024404,2]
[404670271,1770406246091,-766.98781907,0.00024651,2]
[404670273,1770406246102,-3362.70846954,0.00024651,2]
[404670275,1770406246113,-870.30371139,0.00024651,2]
[404670277,1770406246122,-6704.57871236,0.00024651,2]
[404670399,1770406484764,179.25,0.000179,2]
[404670400,1770406485504,179.25,0.00017,2]
[404670419,1770406637497,5000.0,0.00018,2]
[404670420,1770406659462,5000.0,0.00018,2]
[404670421,1770406682502,5000.0,0.00018,2]
[404670423,1770406704690,4641.5,0.00018,2]
[404670433,1770406817657,1107.93878208,0.00018,2]
[404670434,1770406896090,1894.83300869,0.00018,2]
[404670499,1770407432130,-150.0,0.00018717,2]
[404670500,1770407432139,-239.0,0.000189,2]
[404670501,1770407432149,-303.10001603,0.000189,2]
[404670502,1770407432159,-300.0,0.00019083,2]
[404670503,1770407432169,-300.0,0.00019084,2]
[404670504,1770407432178,-300.0,0.00019084,2]
[404670505,1770407432187,-300.0,0.00019084,2]
[404670506,1770407432196,-300.0,0.00019084,2]
[404670507,1770407432206,-300.0,0.00019084,2]
[404670508,1770407432215,-300.0,0.00019084,2]
[404670509,1770407432226,-300.0,0.00019084,2]
[404670510,1770407432235,-300.0,0.00019084,2]
[404670511,1770407432245,-300.0,0.00019084,2]
[404670512,1770407432254,-300.0,0.00019084,2]
[404670513,1770407432263,-300.0,0.00019084,2]
[404670514,1770407432272,-300.0,0.00019084,2]
[404670515,1770407432282,-300.0,0.00019084,2]
[404670516,1770407432291,-300.0,0.00019084,2]
[404670517,1770407432438,-300.0,0.00019084,2]
[404670518,1770407432448,-303.10001603,0.00019089,2]
[404670519,1770407432457,-303.10001603,0.00019278,2]
[404670520,1770407432466,-600.0,0.00019465,2]
[404670521,1770407432476,-818.43962369,0.00019465,2]
[404670522,1770407432487,-7746.82047504,0.00019465,2]
[404670523,1770407432499,-1568.19369485,0.00019465,2]
[404670524,1770407432508,-303.10001603,0.00019467,2]
[404670525,1770407432518,-236.62273747,0.00019656,2]
[404670526,1770407432529,-66.47727856,0.00019656,2]
[404670527,1770407432539,-399.12537495,0.00019845,4]
[404670528,1770407432568,-55.5246491,0.00019845,4]
[404670529,1770407432578,-601.59897348,0.00020034,4]
[404670530,1770407432587,-177.0,0.00020717,2]
[404670531,1770407432596,-420.0,0.00020799,2]
[404670532,1770407432605,-146.30553124,0.00021411,10]
[404670543,1770407438140,-573.69446876,0.00021411,10]
[404670544,1770407438150,-1472.9453257,0.00021657,2]
[404670545,1770407438160,-587.0,0.00022669,2]
[404670546,1770407438171,-202.79043452,0.00022717,2]
[404670547,1770407438181,-402.31416801,0.00023552,10]
[404670548,1770407438195,-461.68583199,0.00023552,10]
[404670549,1770407438205,-1049.63162118,0.0002457,7]
[404670550,1770407438215,-457.58050921,0.0002457,7]
[404670551,1770407438225,-3054.4804954,0.00024679,2]
[404670552,1770407438235,-2129.68989098,0.00025,2]
[404670553,1770407438244,-500.0,0.00025303,7]
[404670554,1770407438254,-2449.75491915,0.00025345,2]
[404670555,1770407438264,-500.0,0.00025445,2]
[404670556,1770407438274,-500.0,0.00025445,2]
[404670557,1770407438283,-500.0,0.00025445,2]
[404670558,1770407438293,-500.0,0.00025445,2]
[404670559,1770407438303,-500.0,0.00025445,2]
[404670560,1770407438312,-500.0,0.00025445,2]
[404670561,1770407438323,-250.0,0.00025445,2]
[404670562,1770407438332,-500.0,0.00025445,2]
[404670563,1770407438342,-500.0,0.00025445,2]
[404670564,1770407438351,-250.0,0.00025445,2]
[404670565,1770407438361,-500.0,0.00025445,2]
[404670566,1770407438370,-500.0,0.00025445,2]
[404670567,1770407438380,-250.0,0.00025445,2]
[404670568,1770407438389,-500.0,0.00025445,2]
[404670569,1770407438399,-500.0,0.00025445,2]
[404670570,1770407438408,-250.0,0.00025445,2]
[404670571,1770407438417,-500.0,0.00025445,2]
[404670572,1770407438427,-500.0,0.00025445,2]
[404670573,1770407438436,-500.0,0.00025445,2]
[404670574,1770407438446,-500.0,0.00025445,2]
[404670575,1770407438455,-500.0,0.00025445,2]
[404670576,1770407438465,-500.0,0.00025445,2]
[404670577,1770407438475,-500.0,0.00025445,2]
[404670578,1770407438485,-500.0,0.00025445,2]
[404670579,1770407438494,-500.0,0.00025445,2]
[404670580,1770407438504,-500.0,0.00025445,2]
[404670581,1770407438513,-250.0,0.00025445,2]
[404670582,1770407438523,-250.0,0.00025445,2]
[404670583,1770407438532,-250.0,0.00025445,2]
[404670584,1770407438542,-250.0,0.00025445,2]
[404670585,1770407438551,-250.0,0.00025445,2]
[404670586,1770407438561,-250.0,0.00025445,2]
[404670587,1770407438570,-250.0,0.00025445,2]
[404670588,1770407438580,-250.0,0.00025445,2]
[404670589,1770407438590,-250.0,0.00025445,2]
[404670590,1770407438600,-1001.0736353,0.00025459,2]
[404670591,1770407438610,-1000.0,0.00025907,10]
[404670592,1770407438619,-1373.0,0.00026089,2]
[404670593,1770407438629,-632.0,0.00026089,2]
[404670594,1770407438639,-179.0,0.00026089,2]
[404670595,1770407438649,-300.0,0.00026517,2]
[404670596,1770407438659,-150.0,0.000268,10]
[404670597,1770407438669,-233.75849901,0.00026841,2]
[404670598,1770407438678,-420.76529822,0.00026841,2]
[404670599,1770407438688,-748.02719684,0.00026841,2]
[404670600,1770407438697,-168.60743604,0.00026841,2]
[404670601,1770407438707,-303.49338487,0.00026841,2]
[404670602,1770407438717,-539.54379533,0.00026841,2]
[404670603,1770407438727,-1168.79249507,0.00026841,2]
[404670604,1770407438737,-1681.3781317,0.00027059,2]
[404670605,1770407438747,-842.19414302,0.00027059,2]
[404670606,1770407438757,-1000.0,0.00027125,30]
[404670607,1770407438767,-741.48751943,0.00027151,2]
[404670608,1770407438777,-1041.66666667,0.00027151,2]
[404670609,1770407438787,-500.0,0.00027377,2]
[404670610,1770407438796,-711.0,0.000274,3]
[404670611,1770407438806,-2449.75491908,0.00027504,2]
[404670612,1770407438817,-681.5467221,0.00027805,2]
[404670613,1770407438828,-1041.66666667,0.00028,3]
[404670614,1770407438838,-150.16,0.00028,7]
[404670615,1770407438848,-711.0,0.0002804,3]
[404670616,1770407438858,-1000.0,0.00028498,30]
[404670617,1770407438868,-244.0,0.00028498,30]
[404670618,1770407438879,-2703.042418,0.000285,60]
[404670619,1770407438889,-152.0736292,0.00028502,2]
[404670620,1770407438899,-2559.86,0.00028502,30]
[404670621,1770407438910,-710.0,0.00028546,3]
[404670622,1770407438919,-1759.89437079,0.00028581,60]
[404670623,1770407439249,-1309.23250521,0.00028581,60]
[404670624,1770407439259,-3326.377947,0.00028596,60]
[404670625,1770407439268,-2826.187473,0.00028596,60]
[404670626,1770407439278,-2252.49189,0.0002863,60]
[404670627,1770407439288,-500.0,0.00028631,7]
[404670628,1770407439298,-748.0,0.0002868,3]
[404670629,1770407439307,-405.0,0.00028785,3]
[404670630,1770407439318,-353.63858273,0.00028903,2]
[404670631,1770407439328,-439.96,0.00028903,10]
[404670632,1770407439337,-36060.23770787,0.00028913,2]
[404670633,1770407439346,-972.23,0.00028964,3]
[404670634,1770407439355,-486.12,0.00028964,3]
[404670635,1770407439364,-243.06,0.00028964,3]
[404670636,1770407439374,-729.2,0.00028964,3]
[404670637,1770407439383,-707.27716546,0.00028964,2]
[404670638,1770407439392,-500.0,0.00028973,2]
[404670639,1770407439402,-500.0,0.00028973,2]
[404670640,1770407439411,-291.74,0.00028973,2]
[404670641,1770407439421,-1768.19291365,0.00028973,2]
[404670642,1770407439430,-575.0,0.00028974,10]
[404670643,1770407439440,-34932.48052497,0.00028974,7]
[404670644,1770407439735,-3067.51947503,0.00028974,7]
[404670645,1770407439745,-3284.59218518,0.00028974,7]
[404671239,1770407446258,-250.0,0.00025445,2]
[404671240,1770407446268,-250.0,0.00025445,2]
[404671241,1770407446277,-7422.20892746,0.00028974,7]
[404671242,1770407446287,-1126.83624947,0.00028974,7]
[404671243,1770407446364,-7574.90235066,0.00028974,7]
[404671441,1770407704420,5000.58,1e-05,2]
[404672388,1770408640669,-7460.43808083,0.00024786,2]
[404672389,1770408640679,-150.0,0.00024796,2]
[404672390,1770408640689,-500.0,0.00024807,2]
[404672391,1770408640698,-208.126988,0.00024988,2]
[404672392,1770408640708,-179.25,0.000251,2]
[404672393,1770408640718,-500.0,0.00025753,7]
[404672394,1770408640728,-151.0,0.00026113,2]
[404672395,1770408640737,-151.08022891,0.00026113,2]
[404672396,1770408640746,-206.851088,0.00026129,2]
[404672397,1770408640756,-339.24866748,0.00026235,2]
[404672398,1770408640765,-150.0,0.00026521,2]
[404672399,1770408640774,-1324.734,0.00026521,2]
[404672400,1770408640783,-165.326,0.00026521,2]
[404672401,1770408640793,-177.0,0.00026796,2]
[404672402,1770408640802,-741.48751943,0.00027119,2]
[404672403,1770408640811,-1041.66666667,0.00027119,2]
[404672404,1770408640820,-711.0,0.000274,3]
[404672405,1770408640830,-400.0,0.00027875,3]
[404672406,1770408640839,-81418.14715519,0.00028,2]
[404672419,1770408644870,-1599.87039554,0.00028,2]
[404672420,1770408644882,-400.12960446,0.00028,2]
[404672421,1770408644925,-540.41765671,0.00028,2]
[404672422,1770408644936,-1893.77814407,0.00028,2]
[404672435,1770408646537,-18733.565124,0.00028,2]
[404672436,1770408646605,-297.75061574,0.00028,2]
[404672437,1770408646617,-20924.79706968,0.00028,2]
[404672438,1770408646628,-918.2789661,0.00028,2]
[404672488,1770409702085,-969.0,0.00030137,120]
[404672489,1770409702111,-635.16421447,0.00030137,120]
[404672490,1770409702137,-363.59422172,0.00030149,120]
[404672491,1770409702163,-184.46314411,0.00031,120]
[404672492,1770409702187,-181.38284688,0.00031,120]
[404672493,1770409702211,-1064.14318742,0.00031,120]
[404672494,1770409702234,-1383.65482419,0.00031,120]
[404672495,1770409702258,-1345.34482392,0.00031,120]
[404672496,1770409702283,-222.55890722,0.00031,120]
[404672497,1770409702306,-1410.21357136,0.00031,120]
[404672498,1770409702330,-1247.8336,0.00031,120]
[404672499,1770409702357,-175.62548144,0.00031,120]
[404672500,1770409702395,-362.03274108,0.00031,120]
[404672773,1770409840674,-1265.02163757,0.00019,2]
[404672774,1770409840686,-1338.46836243,0.00019,2]
[404672775,1770409840696,-673.38793382,0.00019,2]
[404672833,1770409846528,-7574.90522213,0.00019,2]
[404672835,1770409881631,-2986.51655765,0.00019,2]
[404672856,1770410897335,2583.39486349,0.00018,2]
[404673136,1770411044672,-109.13831929,0.00019,2]
[404673137,1770411044682,-150.0,0.00019062,2]
[404673138,1770411044692,-1000.0,0.00019281,2]
[404673139,1770411044702,-708.62646352,0.000199,2]
[404673140,1770411044713,-1877.2313554,0.000199,2]
[404673141,1770411044724,-10024.81115439,0.00019999,2]
[404673142,1770411044734,-500.0,0.00019999,2]
[404673143,1770411044745,-500.0,0.00019999,2]
[404673144,1770411044758,-489.32933534,0.00019999,2]
[404673145,1770411044772,-632.02502,0.00019999,2]
[404673146,1770411044784,-500.0,0.00019999,2]
[404673147,1770411044795,-500.0,0.00019999,2]
[404673148,1770411044809,-500.0,0.00019999,2]
[404673149,1770411044822,-500.0,0.00019999,2]
[404673150,1770411044835,-500.0,0.00019999,2]
[404673151,1770411044848,-500.0,0.00019999,2]
[404673152,1770411044860,-500.0,0.00019999,2]
[404673153,1770411044873,-637.86668899,0.00019999,2]
[404673154,1770411044886,-500.0,0.00019999,2]
[404673155,1770411044899,-500.0,0.00019999,2]
[404673156,1770411044911,-500.0,0.00019999,2]
[404673157,1770411044923,-500.0,0.00019999,2]
[404673158,1770411044935,-500.0,0.00019999,2]
[404673159,1770411044946,-500.0,0.00019999,2]
[404673160,1770411044959,-500.0,0.00019999,2]
[404673161,1770411044973,-500.0,0.00019999,2]
[404673162,1770411044985,-500.0,0.00019999,2]
[404673163,1770411044996,-301.67427116,0.00019999,2]
[404673164,1770411045006,-1261.63225497,0.0002,7]
[404673170,1770411045797,-500.0,0.0002,7]
[404673279,1770412084533,212.5,9.99e-05,14]
[404673303,1770412231841,-570.87407655,0.00019999,2]
[404673304,1770412231851,-422.40825235,0.00019999,2]
[404673305,1770412231861,-150.0,0.0002,2]
[404673306,1770412231870,-4754.13740159,0.0002,7]
[404673503,1770412240198,-2652.6690678,0.0002,7]
[404673504,1770412240257,-3321.82067958,0.0002,7]
[404673513,1770412244487,-8233.23449438,0.0002,7]
[404673538,1770412246016,-604.0,0.0002,7]
[404673635,1770413405087,201.0,0.00028036,120]
[404673636,1770413406375,162.59422172,0.00029437,120]
[404673637,1770413406400,38.40577828,0.00029437,120]
[404673638,1770413430830,177.0,0.00028027,120]
[404673657,1770413432006,-1428.97879449,0.00019,2]
[404673659,1770413432205,-2600.0,0.00019,2]
[404673660,1770413432218,-2750.0,0.00019,2]
[404673674,1770413438078,-795.92642764,0.00019,2]
[404673675,1770413438088,-703.0,0.00019,2]
[404673676,1770413438098,-406.0,0.00019607,2]
[404673677,1770413438107,-10491.6064134,0.00019608,2]
[404673678,1770413438117,-171.1899273,0.00019608,2]
[404673679,1770413438126,-150.0,0.00019721,2]
[404673680,1770413438135,-206.851088,0.00019834,2]
[404673681,1770413438145,-248.05526731,0.00019999,2]
[404673682,1770413438156,-300.0,0.00019999,2]
[404673683,1770413438165,-18084.29722595,0.0002,7]
[404673684,1770413438176,-1531.28253876,0.0002,7]
[404673706,1770413440295,-1110.704945,0.0002,7]
[404673709,1770413440306,-749.58,0.0002,7]
[404673924,1770413445438,-500.0,0.0002,7]
[404673940,1770413446342,-2665.57891042,0.0002,7]
[404673977,1770413501020,-300.0,0.00019999,2]
[404673978,1770413501040,-300.0,0.0002,7]
[404673979,1770413501055,-1592.00748304,0.0002,7]
[404674055,1770414047014,182.20222732,0.0003013,120]
[404674217,1770414632259,-320.67917322,0.00016475,2]
[404674218,1770414632268,-366.12399319,0.00016475,2]
[404674219,1770414632278,-150.0,0.00017136,2]
[404674220,1770414632287,-336.85340244,0.0001805,2]
[404674221,1770414632297,-250.0,0.00018132,5]
[404674222,1770414632307,-497.4839828,0.00018218,2]
[404674223,1770414632318,-300.0,0.00018433,2]
[404674224,1770414632327,-1200.0,0.00018433,2]
[404674225,1770414632337,-10192.38384029,0.00018434,2]
[404674227,1770414632346,-3936.00463617,0.00018435,2]
[404674238,1770414638344,-344.28317013,0.00018435,2]
[404674239,1770414638355,-254.68582857,0.00018446,2]
[404674240,1770414638365,-458.43449142,0.00018446,2]
[404674241,1770414638375,-814.17965677,0.00018446,2]
[404674242,1770414638385,-880.82584396,0.00018447,2]
[404674243,1770414638394,-8491.5466799,0.00018602,2]
[404674244,1770414638404,-205.833838,0.00019095,2]
[404674245,1770414638414,-177.0,0.00019136,2]
[404674246,1770414638568,-225.28,0.000192,2]
[404674247,1770414638578,-3131.832035,0.00019298,2]
[404674248,1770414638590,-500.0,0.00019838,2]
[404674249,1770414638600,-500.0,0.00019838,2]
[404674250,1770414638609,-500.0,0.00019838,2]
[404674251,1770414638619,-500.0,0.00019838,2]
[404674252,1770414638628,-500.0,0.00019838,2]
[404674253,1770414638638,-500.0,0.00019838,2]
[404674254,1770414638647,-500.0,0.00019838,2]
[404674255,1770414638657,-500.0,0.00019838,2]
[404674256,1770414638667,-500.0,0.00019838,2]
[404674257,1770414638676,-500.0,0.00019838,2]
[404674258,1770414638686,-500.0,0.00019838,2]
[404674259,1770414638695,-500.0,0.00019838,2]
[404674260,1770414638705,-500.0,0.00019838,2]
[404674261,1770414638714,-500.0,0.00019838,2]
[404674262,1770414638723,-500.0,0.00019838,2]
[404674263,1770414638735,-196.03209724,0.00019838,2]
[404674264,1770414638744,-500.0,0.00019838,2]
[404674265,1770414638754,-500.0,0.00019838,2]
[404674266,1770414638763,-500.0,0.00019838,2]
[404674267,1770414638773,-500.0,0.00019838,2]
[404674268,1770414638782,-500.0,0.00019838,2]
[404674269,1770414638793,-500.0,0.00019838,2]
[404674270,1770414638802,-500.0,0.00019838,2]
[404674271,1770414638812,-279.53577756,0.00019838,2]
[404674272,1770414638821,-500.0,0.00019838,2]
[404674273,1770414638830,-500.0,0.00019838,2]
[404674274,1770414638840,-500.0,0.00019838,2]
[404674275,1770414638849,-500.0,0.00019838,2]
[404674276,1770414638859,-500.0,0.00019838,2]
[404674277,1770414638868,-500.0,0.00019838,2]
[404674278,1770414638878,-500.0,0.00019838,2]
[404674279,1770414638887,-500.0,0.00019838,2]
[404674280,1770414638896,-500.0,0.00019838,2]
[404674281,1770414638905,-500.0,0.00019838,2]
[404674282,1770414638915,-500.0,0.00019838,2]
[404674283,1770414638924,-500.0,0.00019838,2]
[404674284,1770414638934,-500.0,0.00019838,2]
[404674285,1770414638943,-500.0,0.00019838,2]
[404674286,1770414638952,-243.95900145,0.00019838,2]
[404674287,1770414638962,-500.0,0.00019838,2]
[404674288,1770414638972,-438.43762904,0.00019838,2]
[404674289,1770414638981,-500.0,0.00019838,2]
[404674290,1770414638991,-500.0,0.00019838,2]
[404674291,1770414639000,-543.75306638,0.00019838,2]
[404674292,1770414639010,-2001.3079516,0.00019839,2]
[404674293,1770414639020,-17985.7926186,0.00019839,2]
[404674294,1770414639030,-446.49948116,0.00019999,2]
[404674295,1770414639039,-368.1600192,0.00019999,2]
[404674296,1770414639048,-792.98307854,0.00019999,2]
[404674297,1770414639058,-420.33355334,0.00019999,2]
[404674298,1770414639068,-13520.32069948,0.0002,7]
[404674299,1770414639079,-328.77285515,0.0002,7]
[404674300,1770414639088,-174.27138887,0.0002,7]
[404674301,1770414639098,-420.0,0.00020104,2]
[404674302,1770414639107,-366.0,0.00020202,2]
[404674303,1770414639118,-1000.0,0.00020293,2]
[404674304,1770414639127,-500.0,0.00020438,2]
[404674305,1770414639137,-500.0,0.00020438,2]
[404674306,1770414639147,-500.0,0.00020438,2]
[404674307,1770414639157,-500.0,0.00020438,2]
[404674308,1770414639166,-307.0134201,0.00020438,2]
[404674309,1770414639176,-500.0,0.00020438,2]
[404674310,1770414639186,-1414.14099474,0.0002068,2]
[404674311,1770414639194,-2170.56198,0.00021005,2]
[404674312,1770414639204,-204.0,0.00021136,2]
[404674313,1770414639214,-250.0,0.00021626,2]
[404674314,1770414639223,-2325.72,0.00021879,10]
[404674315,1770414639233,-2170.56198,0.00021889,2]
[404674316,1770414639243,-2790.87,0.00021916,10]
[404674317,1770414639253,-587.0,0.00021926,2]
[404674318,1770414639262,-300.0,0.0002194,2]
[404674319,1770414639272,-566.96151,0.000221,2]
[404674320,1770414639282,-150.17,0.000221,7]
[404674321,1770414639291,-4013.1727873,0.00022413,2]
[404674322,1770414639301,-2170.56198,0.00022773,2]
[404674323,1770414639310,-895.4598867,0.00022988,2]
[404674324,1770414639321,-231.0,0.00023136,2]
[404674325,1770414639331,-495.85,0.00023312,2]
[404674326,1770414639340,-1414.14099471,0.00023426,2]
[404674327,1770414639350,-2170.56198,0.00023658,2]
[404674328,1770414639360,-238.04688932,0.00023696,7]